bitfinex/quotes_BTCUSD_20220105
["timestamp","ask_amount","ask_price","bid_price","bid_amount"]
[1641392444093,0.053985,46315.0,46314.0,0.354714]
[1641392444933,0.053985,46315.0,46314.0,0.432714]
[1641392446133,0.053985,46315.0,46314.0,0.354714]
[1641392446935,0.053985,46315.0,46314.0,0.430714]
[1641392447987,0.053985,46315.0,46314.0,0.49185537]
[1641392448187,0.053985,46315.0,46314.0,0.41585537]
[1641392449088,0.053985,46315.0,46314.0,1.4051635]
[1641392449288,0.053985,46315.0,46314.0,0.488014]
[1641392449787,0.053985,46315.0,46314.0,0.54915537]
[1641392450687,0.053985,46315.0,46314.0,0.47415537]
[1641392450986,0.053985,46315.0,46314.0,0.54615537]
[1641392451388,0.05369245,46315.0,46314.0,0.54615537]
[1641392452054,0.05369245,46315.0,46314.0,1.40219158]
[1641392452253,0.05369245,46315.0,46314.0,1.33019158]
[1641392452857,0.05369245,46315.0,46314.0,1.39819158]
[1641392453455,0.05369245,46315.0,46314.0,0.54215537]
[1641392454254,0.05369245,46315.0,46314.0,0.47415537]
[1641392454857,0.05369245,46315.0,46314.0,0.53815537]
[1641392455056,0.05369245,46315.0,46314.0,1.39418654]
[1641392455883,0.05369245,46315.0,46314.0,0.53815537]
[1641392456084,0.05369245,46315.0,46314.0,0.47415537]
[1641392456686,0.05369245,46315.0,46314.0,1.33018887]
[1641392456883,0.05369245,46315.0,46314.0,1.39518887]
[1641392457684,0.05369245,46315.0,46314.0,0.53915537]
[1641392458284,0.05369245,46315.0,46314.0,0.47415537]
[1641392458884,0.05369245,46315.0,46314.0,0.54015537]
[1641392460137,0.05369245,46315.0,46314.0,1.33006346]
[1641392460944,0.05369245,46315.0,46314.0,1.39806346]
[1641392461145,0.05369245,46315.0,46314.0,0.54215537]
[1641392461542,0.05369245,46315.0,46314.0,1.91906898]
[1641392461742,0.05369245,46315.0,46314.0,1.73065537]
[1641392462340,0.05369245,46315.0,46314.0,1.66265537]
[1641392462987,0.05369245,46315.0,46314.0,1.75365537]
[1641392463187,0.05369245,46315.0,46314.0,1.692514]
[1641392464191,0.05369245,46315.0,46314.0,1.601514]
[1641392464891,0.05369245,46315.0,46314.0,2.57941738]
[1641392465091,0.05369245,46315.0,46314.0,2.66241738]
[1641392465896,0.05369245,46315.0,46314.0,1.684514]
[1641392466094,0.207928,46319.0,46314.0,1.684514]
[1641392466095,0.107936,46316.0,46314.0,1.684514]
[1641392466294,0.107936,46316.0,46315.0,0.354714]
[1641392466495,0.157936,46316.0,46315.0,0.354714]
[1641392466735,0.157936,46316.0,46315.0,1.499714]
[1641392466936,0.207936,46316.0,46315.0,1.572714]
[1641392467636,0.207936,46316.0,46315.0,2.55074187]
[1641392468237,0.207936,46316.0,46315.0,2.47774187]
[1641392468441,0.1,46316.0,46315.0,2.47774187]
[1641392469038,0.05,46316.0,46315.0,2.55074187]
[1641392469240,0.05,46316.0,46315.0,1.572714]
[1641392470243,0.05,46316.0,46315.0,1.499714]
[1641392471200,0.05,46316.0,46315.0,1.573714]
[1641392472199,0.05,46316.0,46315.0,2.47774187]
[1641392472797,0.05,46316.0,46315.0,1.499714]
[1641392473000,0.05,46316.0,46315.0,1.572714]
[1641392474435,0.05,46316.0,46315.0,2.55074187]
[1641392474636,0.05,46316.0,46315.0,2.47774187]
[1641392474937,0.05,46316.0,46315.0,1.499714]
[1641392475235,0.05,46316.0,46315.0,1.573714]
[1641392476037,0.157937,46317.0,46315.0,1.573714]
[1641392476235,0.157937,46317.0,46315.0,1.499714]
[1641392476937,0.05,46316.0,46315.0,1.499714]
[1641392477138,0.05,46316.0,46315.0,1.572714]
[1641392477741,0.05,46316.0,46315.0,2.55074187]
[1641392478393,0.05,46316.0,46315.0,2.47774187]
[1641392478793,0.05,46316.0,46315.0,1.499714]
[1641392478996,0.05,46316.0,46315.0,1.573714]
[1641392480299,0.05,46316.0,46315.0,1.499714]
[1641392481101,0.05,46316.0,46315.0,1.573714]
[1641392482446,0.05,46316.0,46315.0,1.499714]
[1641392483052,0.05,46316.0,46315.0,1.575714]
[1641392484350,0.05,46316.0,46315.0,1.499714]
[1641392485150,0.05,46316.0,46315.0,1.571714]
[1641392486987,0.05,46316.0,46315.0,1.499714]
[1641392487188,0.05,46316.0,46315.0,1.571714]
[1641392488287,0.05,46316.0,46315.0,1.499714]
[1641392489236,0.05,46316.0,46315.0,0.424714]
[1641392489440,0.05,46316.0,46315.0,1.569714]
[1641392490439,0.05,46316.0,46315.0,1.499714]
[1641392491040,0.05,46316.0,46315.0,1.568714]
[1641392492241,0.05,46316.0,46315.0,1.499714]
[1641392493092,0.05,46316.0,46315.0,1.572714]
[1641392493689,0.05,46316.0,46315.0,2.48876763]
[1641392495091,0.05,46316.0,46315.0,2.56376763]
[1641392496394,0.05,46316.0,46315.0,2.41576763]
[1641392497034,0.05,46316.0,46315.0,2.49076763]
[1641392497834,0.05,46316.0,46315.0,2.48576763]
[1641392498433,0.05,46316.0,46315.0,2.41076763]
[1641392498634,0.05,46316.0,46315.0,2.3704069]
[1641392499037,0.05,46316.0,46315.0,2.4424069]
[1641392500488,0.05,46316.0,46315.0,2.3704069]
[1641392501188,0.05,46316.0,46315.0,2.4404069]
[1641392501391,0.05,46316.0,46315.0,1.58542351]
[1641392502289,0.05,46316.0,46315.0,1.51542351]
[1641392503091,0.05,46316.0,46315.0,1.59642351]
[1641392504337,0.05,46316.0,46315.0,1.51542351]
[1641392505245,0.05,46316.0,46315.0,1.59442351]
[1641392506441,0.05,46316.0,46315.0,1.51542351]
[1641392507542,0.05,46316.0,46315.0,1.59142351]
[1641392508388,0.05,46316.0,46315.0,1.51542351]
[1641392509187,0.05,46316.0,46315.0,1.59042351]
[1641392510389,0.05,46316.0,46315.0,1.51542351]
[1641392511186,0.05,46316.0,46315.0,1.59442351]
[1641392512341,0.05,46316.0,46315.0,1.51542351]
[1641392513240,0.05,46316.0,46315.0,1.59342351]
[1641392514441,0.05,46316.0,46315.0,1.51542351]
[1641392515142,0.05,46316.0,46315.0,1.59242351]
[1641392516386,0.05,46316.0,46315.0,1.51542351]
[1641392517187,0.05,46316.0,46315.0,1.58942351]
[1641392518391,0.05,46316.0,46315.0,1.51542351]
[1641392519352,0.05,46316.0,46315.0,1.58742351]
[1641392520354,0.05,46316.0,46315.0,1.51542351]
[1641392520758,0.05,46316.0,46315.0,1.55892351]
[1641392521254,0.05,46316.0,46315.0,1.63692351]
[1641392521656,0.05,46316.0,46315.0,2.61495138]
[1641392522457,0.05,46316.0,46315.0,2.53695138]
[1641392522659,0.04961109,46316.0,46315.0,2.53695138]
[1641392523293,0.107937,46317.0,46315.0,2.66691338]
[1641392523491,0.107937,46317.0,46316.0,0.68728615]
[1641392523690,0.107937,46317.0,46316.0,1.87578615]
[1641392524290,0.157937,46317.0,46316.0,1.87578615]
[1641392524890,0.157937,46317.0,46316.0,1.543214]
[1641392525290,0.157937,46317.0,46316.0,1.615214]
[1641392526392,0.157937,46317.0,46316.0,1.73961315]
[1641392527241,0.157937,46317.0,46316.0,2.7869561]
[1641392527640,0.157937,46317.0,46316.0,1.80861315]
[1641392528545,0.157937,46317.0,46316.0,1.73961315]
[1641392529141,0.157937,46317.0,46316.0,1.80661315]
[1641392530487,0.157937,46317.0,46316.0,1.73961315]
[1641392531289,0.157937,46317.0,46316.0,1.80861315]
[1641392532490,0.157937,46317.0,46316.0,1.73961315]
[1641392533392,0.157937,46317.0,46316.0,1.80861315]
[1641392534537,0.157937,46317.0,46316.0,1.73961315]
[1641392535437,0.157937,46317.0,46316.0,1.81361315]
[1641392536941,0.157937,46317.0,46316.0,1.73961315]
[1641392537340,0.157937,46317.0,46316.0,1.81161315]
[1641392539090,0.157937,46317.0,46316.0,1.73961315]
[1641392539290,0.157937,46317.0,46316.0,1.80961315]
[1641392539491,0.157937,46317.0,46316.0,1.87075896]
[1641392540591,0.157937,46317.0,46316.0,1.80075896]
[1641392541291,0.157937,46317.0,46316.0,1.87075896]
[1641392542638,0.157937,46317.0,46316.0,1.80075896]
[1641392543138,0.157937,46317.0,46316.0,2.77911132]
[1641392543338,0.157937,46317.0,46316.0,2.84811132]
[1641392544539,0.157937,46317.0,46316.0,2.77911132]
[1641392546088,0.157937,46317.0,46316.0,1.63411132]
[1641392546288,0.157937,46317.0,46316.0,2.70216332]
[1641392546889,0.157937,46317.0,46316.0,2.26542132]
[1641392547189,0.157937,46317.0,46316.0,1.12042132]
[1641392547390,0.157937,46317.0,46316.0,1.83366632]
[1641392547589,0.157937,46317.0,46316.0,0.68866632]
[1641392547992,0.207937,46317.0,46316.0,0.3548]
[1641392548192,0.05,46316.0,46315.0,0.00501]
[1641392548592,0.21272722,46309.0,46308.0,0.00033]
[1641392548993,0.21272722,46309.0,46307.0,1.05839965]
[1641392548994,0.26272722,46309.0,46307.0,1.05828965]
[1641392549242,0.26272722,46309.0,46308.0,0.3548]
[1641392549637,0.26272722,46309.0,46308.0,0.354844]
[1641392550339,0.59223637,46309.0,46308.0,0.354845]
[1641392550740,0.59223637,46309.0,46308.0,0.159595]
[1641392550741,0.64621637,46309.0,46308.0,0.159595]
[1641392551540,0.69621637,46309.0,46307.0,0.107953]
[1641392551744,0.32213255,46308.0,46306.0,0.00011]
[1641392551939,0.053984,46308.0,46306.0,0.00011]
[1641392552139,0.37389212,46308.0,46306.0,0.00011]
[1641392552540,0.053984,46308.0,46306.0,0.00011]
[1641392553288,0.053984,46308.0,46306.0,0.054093]
[1641392553689,0.053984,46308.0,46307.0,0.43858064]
[1641392556594,0.053984,46308.0,46307.0,1.41716395]
[1641392557139,0.053984,46308.0,46307.0,0.43858064]
[1641392557340,0.053984,46308.0,46307.0,1.41716395]
[1641392557940,0.37484346,46308.0,46307.0,0.97858331]
[1641392558542,0.053984,46308.0,46306.0,1.03267631]
[1641392559542,0.053984,46308.0,46307.0,6.595e-05]
[1641392560145,0.053984,46308.0,46307.0,0.97864926]
[1641392560344,0.053984,46308.0,46307.0,6.595e-05]
[1641392566139,0.053984,46308.0,46307.0,0.97862821]
[1641392566341,0.053984,46308.0,46307.0,2.12362821]
[1641392567243,0.05252104,46308.0,46307.0,2.12362821]
[1641392571940,0.10252104,46308.0,46307.0,2.12356821]
[1641392574550,0.05252104,46308.0,46307.0,2.16706821]
[1641392574954,0.12057181,46314.0,46308.0,0.053968]
[1641392575150,0.01263581,46314.0,46309.0,0.44832592]
[1641392575696,0.01117305,46314.0,46310.0,1.145]
[1641392575895,0.06513705,46314.0,46312.0,1.145]
[1641392576096,0.42,46328.0,46314.0,1.02]
[1641392576295,0.42,46334.0,46327.0,0.00123486]
[1641392576498,1.0962,46335.0,46330.0,0.33326051]
[1641392576696,1.345,46336.0,46330.0,0.33326051]
[1641392576697,0.42,46336.0,46331.0,0.0435]
[1641392577197,0.107893,46334.0,46333.0,0.053946]
[1641392577395,0.107893,46334.0,46333.0,1.242446]
[1641392578398,0.010893,46334.0,46333.0,0.0435]
[1641392579341,0.010893,46334.0,46333.0,0.1125]
[1641392579741,0.006893,46334.0,46333.0,0.1125]
[1641392580146,0.006893,46334.0,46333.0,1.2575]
[1641392580743,0.006893,46334.0,46333.0,1.1885]
[1641392581342,0.006893,46334.0,46333.0,0.1275]
[1641392581943,0.006893,46334.0,46333.0,1.2725]
[1641392582544,0.006893,46334.0,46333.0,1.1885]
[1641392583093,0.006893,46334.0,46333.0,1.50538687]
[1641392583492,0.006893,46334.0,46333.0,1.53938687]
[1641392584793,0.006893,46334.0,46333.0,1.50538687]
[1641392585398,0.006893,46334.0,46333.0,1.53938687]
[1641392586846,0.006893,46334.0,46333.0,1.50538687]
[1641392587444,0.006893,46334.0,46333.0,1.55927052]
[1641392588245,0.006893,46334.0,46333.0,1.2395]
[1641392588446,0.006893,46334.0,46333.0,1.55768953]
[1641392588645,0.006893,46334.0,46333.0,1.50668953]
[1641392588847,0.006893,46334.0,46333.0,1.1885]
[1641392589345,0.006893,46334.0,46333.0,1.2655]
[1641392590346,0.006893,46334.0,46333.0,0.1205]
[1641392590788,0.006893,46334.0,46333.0,0.0435]
[1641392591290,0.006893,46334.0,46333.0,0.05215622]
[1641392591489,0.006893,46334.0,46333.0,0.12615622]
[1641392591689,0.006893,46334.0,46333.0,0.27928921]
[1641392592089,0.006893,46334.0,46333.0,0.23578921]
[1641392592488,0.006893,46334.0,46333.0,0.08265622]
[1641392592688,0.006893,46334.0,46333.0,0.0086562]
[1641392593094,0.006893,46334.0,46333.0,0.16178919]
[1641392593390,0.006893,46334.0,46333.0,0.23378919]
[1641392593590,0.001893,46334.0,46333.0,0.23378919]
[1641392594742,0.001893,46334.0,46333.0,0.16178919]
[1641392595343,0.001893,46334.0,46333.0,0.23478919]
[1641392595544,0.17932054,46334.0,46333.0,0.23478919]
[1641392595947,0.27932054,46334.0,46333.0,0.23478915]
[1641392596147,0.65932054,46334.0,46333.0,0.23478915]
[1641392596744,0.27932054,46334.0,46333.0,0.00577756]
[1641392596944,0.101893,46334.0,46333.0,0.00577756]
[1641392597346,0.053893,46334.0,46333.0,0.06377756]
[1641392597744,0.053893,46334.0,46333.0,0.00385592]
[1641392598217,0.053893,46334.0,46333.0,0.00257722]
[1641392598419,0.27063627,46334.0,46333.0,0.00257722]
[1641392599217,0.26863627,46334.0,46333.0,0.00257722]
[1641392599517,0.27063627,46334.0,46333.0,0.05657722]
[1641392600518,0.60547496,46334.0,46333.0,0.05657722]
[1641392600718,0.60347496,46334.0,46333.0,0.00257722]
[1641392601520,0.60547496,46334.0,46333.0,0.05657722]
[1641392601945,0.27063627,46334.0,46333.0,0.05657722]
[1641392602744,0.27063627,46334.0,46333.0,0.00257722]
[1641392602745,0.26863627,46334.0,46333.0,0.00257722]
[1641392603551,0.27063627,46334.0,46333.0,0.05657722]
[1641392605594,0.27263627,46334.0,46333.0,0.11157722]
[1641392606793,0.27263627,46334.0,46333.0,0.00257722]
[1641392606794,0.26863627,46334.0,46333.0,0.00257722]
[1641392607394,0.58181591,46334.0,46333.0,0.05757722]
[1641392607594,0.27063627,46334.0,46333.0,0.05757722]
[1641392608194,0.59645657,46334.0,46333.0,0.05757722]
[1641392608596,0.27063627,46334.0,46333.0,0.05757722]
[1641392608797,0.26863627,46334.0,46333.0,0.00257722]
[1641392609447,0.27063627,46334.0,46333.0,0.05657722]
[1641392610753,0.58048471,46334.0,46328.0,0.38403955]
[1641392610950,0.053959,46332.0,46328.0,0.38575608]
[1641392611251,0.053959,46331.0,46328.0,0.38575608]
[1641392611455,0.053959,46331.0,46328.0,0.44375608]
[1641392612252,0.053959,46331.0,46328.0,0.49771408]
[1641392612751,0.053959,46331.0,46328.0,0.43971408]
[1641392612993,0.157918,46331.0,46328.0,0.43971408]
[1641392613692,0.159918,46331.0,46328.0,0.50071408]
[1641392614296,0.159918,46331.0,46328.0,0.55466948]
[1641392615097,0.159918,46331.0,46328.0,0.55466946]
[1641392615298,0.157918,46331.0,46328.0,0.49366946]
[1641392615497,0.158918,46331.0,46328.0,0.56166946]
[1641392616299,0.158918,46331.0,46328.0,1.70666946]
[1641392616751,0.157918,46331.0,46328.0,1.63866946]
[1641392617443,0.157918,46331.0,46328.0,1.70666946]
[1641392618244,0.157918,46331.0,46328.0,0.56166946]
[1641392618844,0.157918,46331.0,46328.0,0.49366946]
[1641392619250,0.157918,46331.0,46328.0,0.05567451]
[1641392619448,0.31404514,46330.0,46328.0,0.06771649]
[1641392619647,0.31404514,46330.0,46328.0,0.00114423]
[1641392619648,0.107928,46329.0,46328.0,0.00114423]
[1641392619848,0.46886751,46329.0,46328.0,0.00114423]
[1641392620051,0.61886751,46329.0,46328.0,0.00114423]
[1641392620248,0.51093951,46329.0,46322.0,0.97856226]
[1641392620498,0.053966,46326.0,46322.0,1.42270198]
[1641392620796,0.053966,46326.0,46322.0,0.44413972]
[1641392620797,0.37068105,46326.0,46322.0,0.44413972]
[1641392620999,0.42068105,46326.0,46322.0,0.44413972]
[1641392621196,0.42068105,46326.0,46322.0,0.49810472]
[1641392621594,0.42268105,46326.0,46322.0,0.49810472]
[1641392621998,0.053965,46324.0,46322.0,0.49810472]
[1641392622296,0.103965,46324.0,46322.0,0.49810472]
[1641392623496,0.105965,46324.0,46322.0,0.49810472]
[1641392623899,0.15993,46324.0,46322.0,0.55206795]
[1641392624756,0.15793,46324.0,46322.0,0.49810472]
[1641392625655,0.15993,46324.0,46322.0,0.49810472]
[1641392626858,0.15793,46324.0,46322.0,0.49810472]
[1641392627855,0.15793,46324.0,46322.0,0.55206759]
[1641392629498,0.15993,46324.0,46322.0,0.55206759]
[1641392630995,0.15793,46324.0,46322.0,0.55206759]
[1641392632647,0.103965,46324.0,46322.0,0.55206759]
[1641392633348,0.053965,46324.0,46322.0,1.95569835]
[1641392633548,0.053965,46324.0,46323.0,0.24964462]
[1641392633749,0.053965,46324.0,46323.0,0.25040744]
[1641392634147,0.053965,46324.0,46323.0,1.39540744]
[1641392635149,0.103965,46324.0,46323.0,1.62095795]
[1641392636899,0.103965,46324.0,46323.0,1.37131333]
[1641392638697,0.103965,46324.0,46323.0,1.41481333]
[1641392642849,0.10353365,46324.0,46323.0,1.41481333]
[1641392645997,0.10353365,46324.0,46323.0,0.26981333]
[1641392648852,0.49654221,46324.0,46323.0,0.22631333]
[1641392649252,0.59654221,46324.0,46323.0,0.22631333]
[1641392649451,0.95264885,46324.0,46323.0,0.22631333]
[1641392649649,1.68664885,46324.0,46323.0,0.22631333]
[1641392649849,1.68664885,46324.0,46319.0,0.97848589]
[1641392649850,0.23034068,46321.0,46319.0,0.77300822]
[1641392650050,0.28158045,46321.0,46319.0,0.77300822]
[1641392650253,0.33158045,46321.0,46313.0,0.44910547]
[1641392650695,0.33158045,46321.0,46309.0,1.145]
[1641392650696,0.161929,46319.0,46309.0,1.145]
[1641392650896,0.211929,46319.0,46309.0,1.42075799]
[1641392651196,0.053977,46314.0,46312.0,0.053976]
[1641392651396,0.053977,46314.0,46310.0,0.05397489]
[1641392652196,0.053977,46314.0,46313.0,0.053975]
[1641392652596,0.107952,46314.0,46313.0,0.053975]
[1641392652801,0.157952,46314.0,46313.0,0.053975]
[1641392654659,0.157952,46314.0,46313.0,1.198975]
[1641392654860,0.053975,46314.0,46313.0,1.198975]
[1641392655060,0.103975,46314.0,46313.0,1.198975]
[1641392655467,0.053975,46314.0,46313.0,1.198975]
[1641392655664,0.103975,46314.0,46313.0,1.198975]
[1641392656965,0.053975,46314.0,46313.0,1.198975]
[1641392657169,0.103975,46314.0,46313.0,1.198975]
[1641392659495,0.053975,46314.0,46313.0,1.198975]
[1641392659895,0.103975,46314.0,46313.0,1.198975]
[1641392660294,0.053975,46314.0,46313.0,1.198975]
[1641392660496,0.103975,46314.0,46313.0,1.198975]
[1641392660797,0.053975,46314.0,46313.0,1.198975]
[1641392660994,0.103975,46314.0,46313.0,1.198975]
[1641392661595,0.053975,46314.0,46313.0,1.198975]
[1641392665495,0.053975,46314.0,46313.0,1.3067356]
[1641392666094,0.05,46315.0,46313.0,1.3067356]
[1641392666294,0.053965,46316.0,46313.0,1.36070055]
[1641392666494,0.103965,46316.0,46314.0,1.198966]
[1641392666797,0.05,46316.0,46315.0,0.40575508]
[1641392666994,0.00123832,46325.0,46315.0,0.40626358]
[1641392667196,0.053959,46318.0,46315.0,0.51402418]
[1641392667395,0.107917,46324.0,46316.0,1.1989576]
[1641392667595,0.157917,46324.0,46318.0,1.145]
[1641392667795,0.157917,46324.0,46321.0,0.61289232]
[1641392667996,0.157917,46324.0,46322.0,0.32190251]
[1641392668196,0.157917,46324.0,46322.0,0.32241101]
[1641392668796,0.157917,46324.0,46322.0,0.0544675]
[1641392668997,0.211876,46324.0,46323.0,0.9630025]
[1641392669247,0.211876,46324.0,46323.0,0.963511]
[1641392669546,0.211876,46324.0,46323.0,0.0005085]
[1641392669746,0.162917,46324.0,46323.0,0.0175085]
[1641392670750,0.162917,46324.0,46323.0,0.12535774]
[1641392671551,0.157917,46324.0,46323.0,0.10835774]
[1641392671750,0.157917,46324.0,46323.0,0.14235774]
[1641392672551,0.157917,46324.0,46323.0,0.50668163]
[1641392672999,0.157917,46324.0,46323.0,0.47268163]
[1641392673799,0.157917,46324.0,46323.0,0.50368163]
[1641392675000,0.157917,46324.0,46323.0,0.47268163]
[1641392675801,0.157917,46324.0,46323.0,0.50468163]
[1641392677548,0.157917,46324.0,46323.0,0.47268163]
[1641392677747,0.157917,46324.0,46323.0,0.50468163]
[1641392678950,0.157917,46324.0,46323.0,0.97268163]
[1641392679753,0.157917,46324.0,46323.0,1.04468163]
[1641392681207,0.157917,46324.0,46323.0,0.97268163]
[1641392681707,0.05,46324.0,46323.0,1.03868163]
[1641392683109,0.05,46324.0,46323.0,0.97268163]
[1641392683710,0.05,46324.0,46323.0,1.03568163]
[1641392685650,0.05,46324.0,46323.0,0.97268163]
[1641392685849,0.05,46324.0,46323.0,0.92383239]
[1641392687051,0.05,46324.0,46323.0,0.86483239]
[1641392687755,0.054,46324.0,46323.0,1.586493]
[1641392687998,0.054,46324.0,46323.0,1.27419367]
[1641392688199,0.054,46324.0,46323.0,2.41919367]
[1641392688800,0.054,46324.0,46323.0,2.06583239]
[1641392689000,0.05,46324.0,46323.0,2.00983239]
[1641392689801,0.05,46324.0,46323.0,2.07583239]
[1641392690399,0.05,46324.0,46323.0,0.93083239]
[1641392690803,0.05,46324.0,46323.0,1.94727479]
[1641392691102,0.05,46324.0,46323.0,1.88127479]
[1641392691749,0.05,46324.0,46323.0,1.94427479]
[1641392692147,0.05,46324.0,46323.0,0.92783239]
[1641392693147,0.05,46324.0,46323.0,0.86483239]
[1641392693848,0.05,46324.0,46323.0,0.92783239]
[1641392694650,0.05,46324.0,46323.0,1.94428087]
[1641392695149,0.05,46324.0,46323.0,1.88128087]
[1641392695810,0.05,46324.0,46323.0,1.94428087]
[1641392697010,0.05,46324.0,46323.0,1.88128087]
[1641392697912,0.05,46324.0,46323.0,1.94528087]
[1641392698112,0.05,46324.0,46323.0,1.09001219]
[1641392699113,0.05,46324.0,46323.0,1.02601219]
[1641392699847,0.05,46324.0,46323.0,1.09001219]
[1641392700048,0.05,46324.0,46323.0,1.40676345]
[1641392700450,0.05,46324.0,46323.0,2.38433813]
[1641392701049,0.05,46324.0,46323.0,2.32033813]
[1641392701453,0.05,46324.0,46323.0,2.00358687]
[1641392701750,0.05,46324.0,46323.0,1.99358687]
[1641392701953,0.05,46324.0,46323.0,2.05858687]
[1641392702998,0.03048,46324.0,46323.0,2.05858687]
[1641392703299,0.01096,46324.0,46323.0,1.99358687]
[1641392703497,0.161883,46325.0,46323.0,2.04754487]
[1641392703901,0.161883,46325.0,46323.0,2.11154487]
[1641392704502,0.161883,46325.0,46324.0,0.1611798]
[1641392705300,0.211883,46325.0,46324.0,0.1611798]
[1641392705500,0.211883,46325.0,46324.0,0.4701168]
[1641392705901,0.213883,46325.0,46324.0,0.5331168]
[1641392706100,0.213883,46325.0,46324.0,0.2241798]
[1641392706302,0.213883,46325.0,46324.0,1.20175448]
[1641392706499,0.213883,46325.0,46324.0,1.5133459]
[1641392706948,0.213883,46325.0,46324.0,1.20175448]
[1641392707150,0.213883,46325.0,46324.0,1.51337711]
[1641392707350,0.60473362,46325.0,46324.0,1.20175448]
[1641392707546,0.26510617,46325.0,46324.0,1.20175448]
[1641392707747,0.263883,46325.0,46324.0,1.20175448]
[1641392707947,0.764883,46325.0,46324.0,1.0173879]
[1641392708347,0.264883,46325.0,46324.0,0.1611798]
[1641392708546,0.264883,46325.0,46324.0,0.50203042]
[1641392708747,0.264883,46325.0,46324.0,0.14347229]
[1641392708949,0.214883,46325.0,46324.0,0.14347229]
[1641392709146,0.211883,46325.0,46324.0,0.14347229]
[1641392710805,0.211883,46325.0,46324.0,0.45931337]
[1641392712809,0.053958,46326.0,46324.0,0.45931337]
[1641392713011,0.085548,46328.0,46325.0,0.88289822]
[1641392713213,0.0316,46328.0,46327.0,1.97484875]
[1641392713410,0.01268491,46339.0,46327.0,2.07841875]
[1641392713611,0.01268491,46339.0,46338.0,0.00128367]
[1641392713812,0.01268491,46339.0,46338.0,0.73553435]
[1641392714253,0.2982,46346.0,46338.0,0.73553435]
[1641392714254,0.107868,46347.0,46338.0,2.6064485]
[1641392714456,0.58839347,46353.0,46344.0,0.05393113]
[1641392714655,0.58839347,46353.0,46345.0,0.0435]
[1641392714852,0.58839347,46353.0,46346.0,0.0435]
[1641392715058,0.107862,46350.0,46348.0,0.34516733]
[1641392715256,0.10786,46351.0,46349.0,0.0435]
[1641392715855,0.10786,46351.0,46349.0,0.0525]
[1641392716457,0.05393,46351.0,46349.0,0.10766059]
[1641392716761,0.05393,46351.0,46350.0,1.145]
[1641392718004,0.05393,46351.0,46350.0,2.0188347]
[1641392719202,0.05393,46351.0,46350.0,2.0008347]
[1641392719604,0.05393,46351.0,46350.0,1.14389729]
[1641392719802,0.05393,46351.0,46350.0,1.48771061]
[1641392720002,0.05393,46351.0,46350.0,1.17589729]
[1641392720404,0.04893,46351.0,46350.0,1.17589729]
[1641392720907,0.04893,46351.0,46350.0,1.17436148]
[1641392721105,0.04893,46351.0,46350.0,1.1421178]
[1641392721303,0.04893,46351.0,46350.0,1.44320062]
[1641392721502,0.04893,46351.0,46350.0,1.42175421]
[1641392721752,0.04893,46351.0,46350.0,1.42135864]
[1641392721954,0.04893,46351.0,46350.0,1.44237421]
[1641392722454,0.04893,46351.0,46350.0,1.13400878]
[1641392723155,0.04893,46351.0,46349.0,0.09866059]
[1641392723355,0.04893,46351.0,46349.0,0.097426]
[1641392723855,0.04893,46351.0,46349.0,0.116426]
[1641392724055,0.102858,46351.0,46349.0,0.116426]
[1641392724455,0.05,46350.0,46349.0,0.116426]
[1641392724654,0.1,46350.0,46349.0,0.116426]
[1641392725698,0.102858,46351.0,46349.0,0.116426]
[1641392725902,0.04893,46351.0,46349.0,0.49125159]
[1641392726101,0.053918,46355.0,46351.0,0.00121692]
[1641392726300,0.111835,46359.0,46352.0,0.097416]
[1641392726701,0.111835,46359.0,46355.0,0.26532647]
[1641392726901,0.111835,46359.0,46356.0,1.1885]
[1641392727201,0.111835,46359.0,46356.0,1.29632977]
[1641392727401,0.111835,46359.0,46357.0,1.145]
[1641392727901,0.05,46358.0,46357.0,1.145]
[1641392728502,0.161835,46359.0,46357.0,1.145]
[1641392728503,0.004,46359.0,46357.0,1.60365281]
[1641392728702,0.004,46359.0,46358.0,1.76490578]
[1641392728904,0.004,46359.0,46358.0,1.51119765]
[1641392729104,0.004,46359.0,46358.0,2.15833765]
[1641392729354,0.004,46359.0,46358.0,1.82343187]
[1641392729956,0.004,46359.0,46358.0,1.84843187]
[1641392730354,0.004,46359.0,46358.0,1.8036925]
[1641392730554,0.004,46359.0,46358.0,0.67214]
[1641392731157,0.004,46359.0,46358.0,0.64714]
[1641392731553,0.004,46359.0,46358.0,0.90472542]
[1641392731953,0.004,46359.0,46358.0,0.96872542]
[1641392733104,0.004,46359.0,46358.0,2.11372542]
[1641392733504,0.004,46359.0,46358.0,0.96872542]
[1641392733803,0.004,46359.0,46358.0,0.92172542]
[1641392734203,0.004,46359.0,46358.0,2.06672542]
[1641392735203,0.004,46359.0,46358.0,2.04972542]
[1641392735907,0.004,46359.0,46358.0,2.06672542]
[1641392737150,0.004,46359.0,46358.0,2.04972542]
[1641392737650,0.004,46359.0,46358.0,3.02782222]
[1641392737850,0.004,46359.0,46358.0,2.06272542]
[1641392738561,0.634,46359.0,46358.0,0.91772542]
[1641392738751,0.004,46359.0,46358.0,0.91772542]
[1641392738951,0.054,46359.0,46358.0,0.91772542]
[1641392739351,0.004,46359.0,46358.0,0.91772542]
[1641392739554,0.874,46359.0,46358.0,0.91772542]
[1641392739753,0.874,46359.0,46358.0,0.90472542]
[1641392739954,0.054,46359.0,46358.0,0.94572542]
[1641392740353,0.004,46359.0,46358.0,0.94572542]
[1641392741008,0.004,46359.0,46358.0,0.90472542]
[1641392741511,0.00253866,46359.0,46358.0,0.90472542]
[1641392741906,0.00253866,46359.0,46358.0,0.92972542]
[1641392742307,0.00253866,46359.0,46358.0,0.67214]
[1641392743108,0.00253866,46359.0,46358.0,0.64714]
[1641392743610,0.00253866,46359.0,46358.0,2.10067265]
[1641392743813,0.00253866,46359.0,46358.0,2.12167265]
[1641392744009,0.00253866,46359.0,46358.0,2.1207276]
[1641392744255,0.00253866,46359.0,46358.0,0.9757276]
[1641392744852,0.00253866,46359.0,46358.0,1.81219495]
[1641392745053,0.00253866,46359.0,46358.0,1.79119495]